Cogmind - Beta 13 @@@ ROGUE MODE // 2024.04.01 @ 23:31:25 Player: f3-rnm Result: Destroyed by H-77 Assassin with Coil Gun Performance ------------- Evolutions (7) 3500 Regions Visited (20) 4000 Robots Destroyed (289) 1445 Value Destroyed (13552) 13552 Prototype IDs (28) 560 Alien Tech Used (0) 0 Bonus (5406) 5406 TOTAL SCORE: 28463 Bonus ------- High Alert Combat Kills 1247 Follower Combat Kills 475 Entered Garrisons 1000 Used RIF Installer 2500 Scanned by Researcher 500 Friendly Fire -316 Cogmind --------- Core Integrity 0/1300 Matter 300/300 Energy 132/135 System Corruption 20% Temperature Cool (2) Movement Walking (120) Location -3/Testing Parts ------- > --- POWER (2) -------- Compact Particle Reactor > --- PROPULSION (6) --- Flexi-carbon Leg > --- UTILITY (8) ------ 2N-1CE's Frost Array Gravity Neutralizer Core Analyzer Centrium Light Armor Plating Advanced EM Disruption Field > --- WEAPON (5) ------- Lance > --- INVENTORY (5) ---- Micro Antimatter Reactor Improved Matter Compressor (156) Centrium Light Armor Plating Centrium Light Armor Plating Advanced Remote Datajack Peak State ------------ > --- POWER ------------ Particle Reactor Compact Particle Reactor > --- PROPULSION ------- Flexi-carbon Leg Flexi-carbon Leg Myomer Exoskeleton Improved Diametric Drive > --- UTILITY ---------- Advanced Heat Sink 2N-1CE's Frost Array Gravity Neutralizer Core Analyzer Improved Phase Shifter Centrium Light Armor Plating Advanced EM Disruption Field > --- WEAPON ----------- Gamma Rifle Field Laser Plasma Rifle Matter Neutralizer Lance > --- INVENTORY -------- Micro Antimatter Reactor Improved Matter Compressor Centrium Light Armor Plating Centrium Light Armor Plating Advanced Remote Datajack [Rating: 157] Favorites ----------- Power Heavy Ion Engine Engine Heavy Ion Engine Power Core Reinforced Fission Core Reactor Compact Particle Reactor Propulsion Light Treads Treads Light Treads Leg Flexi-carbon Leg Wheel Armored Wheel Hover Unit Constructs Flight Unit Improved Diametric Drive Utility Improved Heat Sink Device Improved Heat Sink Storage High-capacity Storage Unit Processor Advanced Targeting Computer Hackware Relay Coupler [Grunt] Protection Improved Medium Armor Plating Weapon Gauss Rifle Energy Gun Gatling Laser Energy Cannon Advanced Plasma Cannon Ballistic Gun Gauss Rifle Ballistic Cannon Light Cannon Launcher Heavy Proton Missile Launcher Special Weapon Improved Remote Datajack Impact Weapon Mace Piercing Weapon Lance Build | -11 -10 -9 -9 -9 -9 -7 -7 -6 -6 -5 -5 -5 -5 -5 -4 -4 -4 -4 -3 -3 ------- Run | Yrd Mat Mat Sto Gar Rec Fac Gar Fac Gar Fac Gar Fac Upp Upp Fac Was Fac Gar Res Tes Slots Evolved 14 | . . 2 . . . 4 . 2 . 2 . . . . 2 . . . 2 . Power 1 | . . . . . . . . . . . . . . . 1 . . . . . Propulsion 4 | . . 1 . . . 1 . . . . . . . . 1 . . . 1 . Utility 6 | . . 1 . . . 2 . 1 . 2 . . . . . . . . . . Weapon 3 | . . . . . . 1 . 1 . . . . . . . . . . 1 . Parts Attached 365 | 7 10 19 17 8 4 11 22 9 29 17 40 5 2 7 49 3 24 23 22 37 Power 32 | 1 1 2 3 . . . 1 . 2 3 3 . 1 2 5 . 2 1 1 4 Engine 17 | 1 1 1 3 . . . 1 . 2 1 1 . . 1 3 . 2 . . . Core 8 | . . 1 . . . . . . . 2 1 . 1 1 1 . . 1 . . Reactor 7 | . . . . . . . . . . . 1 . . . 1 . . . 1 4 Propulsion 90 | 2 2 5 6 1 3 1 6 3 4 5 7 2 1 2 16 1 9 6 1 7 Treads 40 | 2 2 5 6 1 3 1 5 3 2 . 2 1 . . 1 . 5 . 1 . Leg 39 | . . . . . . . . . 2 4 4 1 1 2 12 1 4 5 . 3 Wheel 7 | . . . . . . . 1 . . 1 1 . . . 3 . . 1 . . Hover 2 | . . . . . . . . . . . . . . . . . . . . 2 Flight 2 | . . . . . . . . . . . . . . . . . . . . 2 Utility 114 | 2 4 3 3 2 . 3 7 1 12 7 20 1 . 2 11 1 1 8 11 15 Device 60 | . 1 2 . . . 3 3 1 7 5 10 . . 1 7 1 1 2 8 8 Storage 9 | 2 3 . . 1 . . . . . . 1 . . . . . . 1 . 1 Processor 4 | . . . . . . . . . 1 . . 1 . . . . . 1 . 1 Hackware 19 | . . . . . . . 2 . 3 1 5 . . . 2 . . 4 2 . Protection 22 | . . 1 3 1 . . 2 . 1 1 4 . . 1 2 . . . 1 5 Artifact . | . . . . . . . . . . . . . . . . . . . . . Weapon 129 | 2 3 9 5 5 1 7 8 5 11 2 10 2 . 1 17 1 12 8 9 11 Energy Gun 31 | . . 3 2 . . 3 5 . 2 . . . . . 6 . 3 1 2 4 Energy Cannon 22 | . . 1 1 . . . . . 3 1 2 . . 1 2 . 3 . 3 5 Ballistic Gun 34 | 2 3 1 . 1 . 2 . 3 1 . 6 2 . . 6 . . 5 2 . Ballistic Cannon 15 | . . 3 2 2 1 1 . 1 1 . . . . . 1 . 1 1 1 . Launcher 6 | . . 1 . . . . . 1 . . 1 . . . 1 . 2 . . . Special Weapon 15 | . . . . 1 . . 2 . 4 1 1 . . . 1 1 1 1 1 1 Impact Weapon 5 | . . . . 1 . 1 1 . . . . . . . . . 2 . . . Slashing Weapon . | . . . . . . . . . . . . . . . . . . . . . Piercing Weapon 1 | . . . . . . . . . . . . . . . . . . . . 1 Special Melee Weapon . | . . . . . . . . . . . . . . . . . . . . . Unidentified Prototypes 25 | . . 2 2 1 . 1 . 2 . 1 . . . . 3 . . 5 . 8 Corrupted Parts 3 | . . . . . . . . . . . . . . . . . 3 . . . System Corruption 14 | . . . . . . . . . . . . . . . . . 14 . . . Parts Lost 154 | . . 2 2 1 . 1 9 . 13 5 23 4 . 6 29 . 17 15 20 7 Power 15 | . . 1 . . . . . . 1 1 2 . . 1 4 . 2 1 2 . Propulsion 50 | . . 1 . 1 . . 5 . 4 2 8 1 . 1 8 . 6 5 5 3 Utility 38 | . . . 2 . . . 3 . 2 1 7 1 . 1 6 . 4 5 2 4 Weapon 51 | . . . . . . 1 1 . 6 1 6 2 . 3 11 . 5 4 11 . Highest Loss Streak 15 | . . 1 1 1 . 1 3 . 3 4 11 3 . 6 12 . 10 14 15 5 To Critical Strikes 3 | . . . . . . . . . . . 1 . . . 1 . . 1 . . Average Slot Usage (%) 87 | . 98 96 97 93 100 99 94 83 78 81 89 96 94 85 92 92 85 71 70 51 Engine 5 | . 14 8 11 11 11 7 7 6 5 2 3 5 . . 4 5 4 1 . . Core 1 | . . 2 . . . . . . . 2 . . 5 3 4 5 3 1 3 . Treads 15 | . 28 32 32 27 33 29 28 25 14 . 3 8 5 . . . 6 10 . . Leg 7 | . . . . . . . . . 7 13 11 11 17 22 22 26 18 11 18 2 Device 16 | . 12 18 11 11 11 22 19 19 17 20 19 22 17 21 19 10 9 2 11 18 Storage 6 | . 14 11 11 11 11 7 7 6 6 5 5 5 5 5 5 5 5 4 3 . Processor 1 | . . . . . . . . . 3 . . 4 5 5 5 5 5 4 3 3 Hackware 4 | . . . . . . . 2 6 3 6 11 5 5 5 6 10 10 12 7 . Protection 4 | . . 1 8 10 11 7 5 . 1 3 5 5 5 3 2 5 3 . 1 4 Energy Gun 2 | . . 1 4 . . 9 16 2 2 . . . . . 6 . 4 2 . 1 Energy Cannon 3 | . . 3 6 11 11 . . . 3 15 3 . . 4 4 5 4 1 2 2 Ballistic Gun 6 | . 28 5 . . . 6 . 4 1 . 15 22 23 5 6 5 2 7 4 . Ballistic Cannon 3 | . . 10 11 10 11 5 . 4 2 . . . . . . 5 3 2 3 . Special Weapon 1 | . . . . . . . 1 . 3 5 1 . . . . 3 . 3 2 . Naked Turns 45 | . . . . . . . . . . . . . . . . . . . 38 7 Heaviest Build 151 | 10 52 60 60 103 104 109 109 125 131 128 120 94 76 77 124 118 120 121 151 63 Greatest Support 152 | 40 40 63 63 63 60 83 83 104 104 45 60 50 60 80 130 125 127 127 115 152 Greatest Overweight (x) 17 | . 1 1 . 1 1 1 8 8 8 8 17 3 1 1 7 . 2 5 2 3 Average Overweight (x) . | . . . . . 1 1 2 1 1 3 2 1 1 . . . . 1 1 . Largest Inventory Capacity 25 | 8 20 20 20 25 25 25 25 25 25 25 25 20 20 20 20 20 20 25 25 5 Average Capacity 20 | 6 11 20 20 20 25 25 25 25 25 25 20 20 20 20 20 20 20 21 24 5 Most Carried 25 | 3 14 20 20 23 25 25 25 25 25 25 25 20 20 20 20 16 20 20 25 5 Average Carried 19 | 1 9 17 19 19 24 24 24 23 23 24 20 19 18 19 18 15 17 15 21 4 Final Capacity 25 | 8 20 20 20 25 25 25 25 25 25 25 20 20 20 20 20 20 20 25 5 5 Final Carried 25 | 3 14 20 20 23 25 25 25 25 25 25 20 19 20 20 16 15 16 19 5 5 Scrap Engine Consumption 22 | . . . . . . . . 3 17 2 . . . . . . . . . . Constructs Created 4 | . . . . . . . . . 4 . . . . . . . . . . . Constructs Modified 3 | . . . . . . . . . 2 1 . . . . . . . . . . Class Distribution -------------------- 23% | Mutant 19% | Scavenger-Gunner 13% | Bothacker-Mutant 11% | Bothacker-Gunner 9% | Scavenger-Mutant 8% | Bothacker-Tank 7% | Scavenger-Tank 4% | Scavenger-Skirmisher Dominant Class ---------------- Mutant | -10/Materials Mutant | -9/Materials Scavenger-Mutant | -9/Storage Mutant | -9/Garrison Bothacker-Mutant | -9/Recycling Bothacker-Tank | -7/Factory Bothacker-Mutant | -7/Garrison Bothacker-Gunner | -6/Factory Bothacker-Gunner | -6/Garrison Bothacker-Tank | -5/Factory Scavenger-Tank | -5/Garrison Scavenger-Gunner | -5/Factory Scavenger-Gunner | -5/Upper Caves Scavenger-Mutant | -5/Upper Caves Scavenger-Gunner | -4/Factory Scavenger-Gunner | -4/Waste Scavenger-Gunner | -4/Factory Scavenger-Skirmisher | -4/Garrison Scavenger-Skirmisher | -3/Research Mutant | -3/Testing Resources | -11 -10 -9 -9 -9 -9 -7 -7 -6 -6 -5 -5 -5 -5 -5 -4 -4 -4 -4 -3 -3 ----------- Run | Yrd Mat Mat Sto Gar Rec Fac Gar Fac Gar Fac Gar Fac Upp Upp Fac Was Fac Gar Res Tes Matter Collected 8955 | 290 288 1135 367 289 90 93 345 150 756 171 1109 292 90 286 930 . 461 610 564 639 Remotely 814 | . . . . . . 93 . . . . 410 . . . . . . . 311 . Salvage Created 12727 | 105 728 1107 620 363 209 51 796 130 1268 1070 1000 240 55 307 2273 . 713 439 506 747 Parts 597 | 3 52 79 43 26 7 2 23 1 39 29 57 6 1 12 101 . 42 13 25 36 Haulers Intercepted 11 | . 2 3 3 . . . . 1 . 1 . . . . 1 . . . . . Recyclers Shooed 7 | . . 1 . . 1 . . . . 1 . 1 . . 1 . 1 . . 1 Parts Field Recycled . | . . . . . . . . . . . . . . . . . . . . . Retrieved Matter . | . . . . . . . . . . . . . . . . . . . . . Parts Self-Destructed 9 | . . . . . . . . . . . . . . 9 . . . . . . Prevented . | . . . . . . . . . . . . . . . . . . . . . Kills | -11 -10 -9 -9 -9 -9 -7 -7 -6 -6 -5 -5 -5 -5 -5 -4 -4 -4 -4 -3 -3 ------- Run | Yrd Mat Mat Sto Gar Rec Fac Gar Fac Gar Fac Gar Fac Upp Upp Fac Was Fac Gar Res Tes Combat Hostiles Destroyed 232 | . 15 31 13 10 2 3 19 2 26 10 23 4 . 4 32 . 15 7 9 7 Melee 2 | . . . . . . . . . . . . . . . . . . . . 2 Guns 85 | . 15 6 . . . . 19 . 4 . 11 4 . 4 14 . 2 3 2 1 Cannons 102 | . . 20 13 9 2 3 . 2 17 4 8 . . . 12 . 1 3 7 1 AOE 23 | . . 5 . . . . . . . . 3 . . . 5 . 9 1 . . Classes Destroyed 19 | 2 6 2 1 1 . . 2 . 1 . 1 . . . . . . 1 1 1 Worker 12 | . 1 2 2 . . . . . . 2 . . . . 2 . 2 . . 1 Builder 3 | . . . 2 . . . . . . . . . . . 1 . . . . . Tunneler 3 | 1 . . . . . . . . . . . . . . 1 . 1 . . . Hauler 11 | . 2 3 3 . . . . 1 . 1 . . . . 1 . . . . . Recycler 9 | 1 . . . . 2 . . . . 2 . . . . 2 . . . . 2 Operator 4 | . 1 . . . . . . . . 1 . . . . 2 . . . . . Watcher 13 | . 2 4 2 . . . . . . 1 . . . . 1 . 1 . 1 1 Swarmer 55 | . 3 7 4 . . 3 3 . 3 . 10 . . . 13 . 8 . 1 . Cutter 3 | . . . . . . . . . . . 3 . . . . . . . . . Grunt 87 | . 12 17 5 5 . . 9 2 12 7 . 3 . 4 6 . 1 2 . 2 Brawler 4 | . . . . . . . 2 . 2 . . . . . . . . . . . Duelist 5 | . . 1 . . . . 1 . . 2 . . . . . . . 1 . . Researcher 1 | . . . . . . . . . . . . . . . . . . . . 1 Sentry 27 | . . 6 4 1 2 . 2 . 7 1 1 . . . 2 . . . 1 . Hunter 19 | . . . . . . . 2 . . . 6 . . . 6 . 4 1 . . Programmer 27 | . . . . 4 . . . . 2 . 2 1 . . 5 . 2 . 6 5 Heavy 1 | . . . . . . . . . . . . . . . . . . . 1 . Behemoth 3 | . . . . . . . . . 1 . 1 . . . . . . 1 . . Executioner 2 | . . . . . . . . . . . . . . . . . . 2 . . Decomposer 1 | . . . . . . . . . . . . . . 1 . . . . . . Best Kill Streak 14 | 2 4 8 5 7 1 3 6 2 4 4 4 3 . 3 8 . 14 3 4 4 Combat Bots Only 11 | . 3 6 4 7 1 3 6 2 4 4 4 3 . 3 7 . 11 3 3 2 Max Kills in Single Turn 4 | 1 1 2 2 2 1 1 1 1 1 1 3 1 . 1 4 . 4 2 1 1 Gunslinging 1 | . . 1 . . . . . . . . 1 . . . . . . 1 . . Exploded 4 | . . 2 . . . . . . . . 3 . . . 3 . 4 1 . . Melee 1 | . . . . . . . . . . . . . . . . . . . . 1 Uniques/NPCs Destroyed . | . . . . . . . . . . . . . . . . . . . . . Combat | -11 -10 -9 -9 -9 -9 -7 -7 -6 -6 -5 -5 -5 -5 -5 -4 -4 -4 -4 -3 -3 -------- Run | Yrd Mat Mat Sto Gar Rec Fac Gar Fac Gar Fac Gar Fac Upp Upp Fac Was Fac Gar Res Tes Hostile Shots Fired 2378 | . 44 104 76 69 12 19 201 9 370 68 290 56 . 47 290 . 198 159 217 149 Missed 757 | . 11 28 25 12 3 4 72 4 131 19 74 17 . 11 102 . 73 58 64 49 Damage Taken 27907 | . 359 996 593 754 128 220 1407 97 2668 1004 3286 802 . 701 4569 . 2323 2203 4079 1718 Core 3958 | . 52 129 91 102 . 30 109 20 373 178 468 189 . 57 299 . 329 232 995 305 Absorbed by Shields 304 | . . . . . . . . . . . 304 . . . . . . . . . Reduced by Siege Mode 164 | . . . . . . . . . . . . . . . . . . . 164 . Redirected to Shielding 63 | . . . . . . . . . . . . . . . 63 . . . . . Ignored by Resistances 224 | . . . . . . . . . 103 . . . . . . . . . . 121 Regen/Repaired (Parts) 213 | . . 94 . . . . . . 69 50 . . . . . . . . . . Core Remaining (%) 52 | 100 79 . . . 19 . 80 . 53 . . . . 10 . . . 25 . . Volleys Fired 872 | 10 36 83 58 48 13 8 50 11 102 35 108 17 2 13 96 5 31 60 46 40 Largest 4 | 2 2 2 2 2 2 3 3 2 3 3 4 4 4 4 4 1 3 3 4 3 Hottest 353 | 40 46 126 107 103 107 183 240 111 203 294 196 112 107 113 333 7 248 248 353 243 Shots Fired 1837 | 20 72 162 110 78 26 19 122 12 143 87 284 66 9 36 263 5 46 110 111 56 Gun 1034 | 20 72 58 20 . . 6 121 1 52 . 225 66 9 35 209 . 20 70 35 15 Cannon 754 | . . 100 90 78 26 13 . 11 85 86 53 . . 1 53 . 13 32 72 41 Launcher 16 | . . 4 . . . . . . . . 2 . . . . . 10 . . . Special 33 | . . . . . . . 1 . 6 1 4 . . . 1 5 3 8 4 . Kinetic 1037 | 20 72 140 52 37 13 14 15 12 73 . 225 66 9 35 123 . 4 77 50 . Thermal 716 | . . 18 58 41 13 5 106 . 64 86 53 . . 1 109 . 24 25 57 56 Explosive 6 | . . 4 . . . . . . . . 2 . . . . . . . . . Electromagnetic 45 | . . . . . . . . . . . . . . . 30 . 15 . . . Robot Hit Streak 24 | 6 13 10 10 11 13 2 21 6 17 9 24 12 6 12 15 5 14 8 13 15 Robot Miss Streak 13 | 1 3 4 4 3 1 3 6 2 4 3 6 2 1 2 13 1 1 4 6 5 Penetration Max 1 | . . . . . . . . . 1 . . 1 . . 1 . . . . . Secondary Targets 18 | . 2 2 . . . . 6 . . . 4 . . 1 1 . 1 1 . . Max Gunslinging Chain 1 | . 1 1 . . . . 1 . . . 1 . . 1 1 . 1 1 . . Shots Hit Robots 1143 | 12 47 88 62 33 17 11 95 7 115 54 176 48 4 30 151 4 27 54 64 44 Core Hits 567 | 3 28 51 23 11 5 4 71 1 71 19 65 20 1 12 80 . 40 19 24 19 Critical Kills 12 | . . . . 1 . . . . . 6 1 . . . 1 . 1 . . 2 Critical Parts Destroyed 12 | . . . . . . . . . 2 . 2 4 . . 4 . . . . . Critical Strikes 43 | . . 1 2 2 . 2 . . 6 6 4 4 . . 7 . 2 1 . 6 Burn 8 | . . . 1 . . . . . 3 . . . . . 1 . 1 1 . 1 Meltdown 11 | . . . . 1 . . . . . 6 1 . . . . . 1 . . 2 Destroy 13 | . . . . . . . . . . . 3 4 . . 6 . . . . . Blast 6 | . . 1 1 1 . 2 . . 1 . . . . . . . . . . . Smash 2 | . . . . . . . . . 2 . . . . . . . . . . . Impale 3 | . . . . . . . . . . . . . . . . . . . . 3 Melee Attacks 55 | . . . . . . 4 7 2 16 . . . . . . . 10 . . 16 Impact 39 | . . . . . . 4 7 2 16 . . . . . . . 10 . . . Slashing . | . . . . . . . . . . . . . . . . . . . . . Piercing 16 | . . . . . . . . . . . . . . . . . . . . 16 Sneak Attacks . | . . . . . . . . . . . . . . . . . . . . . Combat Hostiles . | . . . . . . . . . . . . . . . . . . . . . Follow-up Attacks . | . . . . . . . . . . . . . . . . . . . . . Damage Inflicted 30722 | 97 693 2269 1329 752 337 215 2167 544 3159 1760 3566 1188 56 671 4795 . 2119 1293 2156 1556 Guns 12982 | 97 693 539 222 . . 53 2167 . 652 . 2182 1188 56 640 2733 . 324 813 398 225 Cannons 13748 | . . 1110 1107 752 328 162 . 544 2245 1760 1207 . . 31 1118 . 173 480 1756 975 Explosions 3356 | . . 620 . . . . . . . . 177 . . . 944 . 1615 . . . Melee 618 | . . . . . . . . . 262 . . . . . . . . . . 356 Ramming 18 | . . . . . 9 . . . . . . . . . . . 7 . 2 . Kinetic 13531 | 97 693 1521 595 307 165 175 160 544 1921 . 2182 1188 56 640 1347 . 10 935 995 . Thermal 13806 | . . 128 734 445 163 40 2007 . 976 1760 1207 . . 31 2650 . 948 358 1159 1200 Explosive 1127 | . . 620 . . . . . . . . 177 . . . 101 . 229 . . . Electromagnetic 1622 | . . . . . . . . . . . . . . . 697 . 925 . . . Impact 262 | . . . . . . . . . 262 . . . . . . . . . . . Slashing . | . . . . . . . . . . . . . . . . . . . . . Piercing 356 | . . . . . . . . . . . . . . . . . . . . 356 Highest Corruption 36 | . . . . 3 3 . 4 . 1 . 1 1 1 1 3 18 36 36 13 20 Average Corruption 8 | . . . . 2 3 . 4 . 1 . 1 1 1 1 1 12 24 36 7 15 Corruption Purged . | . . . . . . . . . . . . . . . . . . . . . Corruption Blocked . | . . . . . . . . . . . . . . . . . . . . . Effects 230 | . . . . 9 15 . 19 . 7 . 15 5 5 7 5 7 43 39 21 33 Message Errors 57 | . . . . 3 7 . 7 . 2 . 3 2 1 1 1 2 5 6 4 13 Matter Fused 49 | . . . . 1 2 . 4 . 4 . 2 2 . 3 1 1 8 10 4 7 Heat Flow Errors 24 | . . . . 1 . . 2 . . . 1 1 . . . . 7 9 . 3 Energy Discharges 19 | . . . . 1 2 . 1 . . . 1 . . . 1 1 6 3 2 1 Parts Rejected 5 | . . . . . . . 1 . . . . . . . . 2 . . 1 1 Parts Fused 2 | . . . . . 1 . . . . . . . . . . . 1 . . . Data Loss (minor) 30 | . . . . 1 1 . 2 . . . 4 . 1 . 1 . 10 4 4 2 Data Loss (major) 10 | . . . . . 1 . . . 1 . 1 . 2 . . . 1 1 1 2 Misfires 12 | . . . . 2 . . 2 . . . . . 1 2 . . . 4 . 1 Alerts 2 | . . . . . 1 . . . . . . . . . . . 1 . . . Misdirections 5 | . . . . . . . . . . . . . . . . 1 1 . 1 2 Weapon Failures 15 | . . . . . . . . . . . 3 . . 1 1 . 3 2 4 1 Overload Shots . | . . . . . . . . . . . . . . . . . . . . . Overflow Damage 1003 | . . 8 5 15 . . . 162 95 86 26 . . . 388 . 68 27 43 80 Projectiles 452 | . . . 5 15 . . . 162 12 86 26 . . . 30 . . 27 43 46 Explosions 434 | . . 8 . . . . . . . . . . . . 358 . 68 . . . Melee 117 | . . . . . . . . . 83 . . . . . . . . . . 34 Knockbacks 35 | . . 9 2 5 1 2 . 1 6 . . . . . . . . 1 8 . Impact . | . . . . . . . . . . . . . . . . . . . . . Kinetic 35 | . . 9 2 5 1 2 . 1 6 . . . . . . . . 1 8 . Secondary . | . . . . . . . . . . . . . . . . . . . . . Self-Inflicted Damage 944 | . . . . . . . . . . . 32 . . . 880 . 31 . 1 . Shots 14 | . . . . . . . . . . . 1 . . . 12 . 1 . . . Rammed 3 | . . . . . 1 . . . . . . . . . . . 1 . 1 . Targets Rammed 4 | . . . . . 1 . . . . . . . . . . . 2 . 1 . Kicked 1 | . . . . . . . . . . . . . . . . . 1 . . . Crushed . | . . . . . . . . . . . . . . . . . . . . . Highest Temperature 682 | . 10 63 33 216 45 24 216 10 48 306 316 131 72 224 234 . 313 661 381 682 Average Temperature 84 | . 2 17 13 47 18 15 48 10 8 97 102 33 40 126 90 . 106 144 164 145 Received Heat Transfer 3610 | . 171 327 117 51 63 . 456 63 892 348 99 135 . 276 60 . 333 87 105 27 Effects 24 | . . . . 1 . . . . . . . . . . . . . 12 . 11 Shutdowns 5 | . . . . . . . . . . . . . . . . . . 2 . 3 Energy Bleed 1 | . . . . . . . . . . . . . . . . . . 1 . . Interference 2 | . . . . 1 . . . . . . . . . . . . . 1 . . Matter Decay 1 | . . . . . . . . . . . . . . . . . . 1 . . Damage (minor) 2 | . . . . . . . . . . . . . . . . . . 2 . . Damage (major) 13 | . . . . . . . . . . . . . . . . . . 5 . 8 Siege Activations 1 | . . . . . . . . . . . . . . . . . . . 1 . Total Turns 50 | . . . . . . . . . . . . . . . . . . . 50 . Longest Duration 50 | . . . . . . . . . . . . . . . . . . . 50 . Robots Corrupted 2 | . . . . . . . . . . . . . . . 1 . 1 . . . Combat Hostiles 2 | . . . . . . . . . . . . . . . 1 . 1 . . . Parts Fried 11 | . . . . . . . . . 2 . . . . . 6 . 3 . . . Impact Corruptions 3 | . . . . . . . . . 3 . . . . . . . . . . . Robots Melted 17 | . . . . 1 . . . . 3 7 1 . . . . . 2 . . 3 Combat Hostiles 16 | . . . . 1 . . . . 3 6 1 . . . . . 2 . . 3 Parts Melted 72 | . . . 3 3 1 . 10 . 5 12 7 . . . 7 . 7 2 5 10 Heat Transferred 21720 | . . 222 1443 663 296 100 4337 . 2263 2500 1700 . . 50 3185 . 1350 800 1390 1421 Parts Sabotaged . | . . . . . . . . . . . . . . . . . . . . . Parts Stolen . | . . . . . . . . . . . . . . . . . . . . . Parts Stripped . | . . . . . . . . . . . . . . . . . . . . . Power Chain Reactions 6 | . . . . . . . . . . . . . . . 4 . 2 . . . Alert | -11 -10 -9 -9 -9 -9 -7 -7 -6 -6 -5 -5 -5 -5 -5 -4 -4 -4 -4 -3 -3 ------- Run | Yrd Mat Mat Sto Gar Rec Fac Gar Fac Gar Fac Gar Fac Upp Upp Fac Was Fac Gar Res Tes Peak Influence 1151 | 10 231 567 310 580 306 112 578 357 1151 738 968 543 . . 593 217 449 315 257 172 Initial 604 | . 6 18 239 133 261 46 10 303 120 604 459 508 . . . 205 151 220 177 51 Average 367 | 6 120 294 190 446 212 59 329 294 691 644 688 492 . . 346 213 241 267 136 73 Maximum Alert Level 4 | . 1 2 1 2 1 . 2 1 4 3 3 2 . . 2 1 2 1 1 . Low Security (%) 34 | 100 95 31 58 6 41 100 29 21 6 . . . . . 16 . 60 . 81 100 Level 1 25 | . 4 36 41 25 58 . 18 78 13 . . 23 . . 57 100 10 100 18 . Level 2 28 | . . 31 . 68 . . 51 . 33 64 62 76 . . 25 . 29 . . . Level 3 10 | . . . . . . . . . 40 35 37 . . . . . . . . . Level 4 . | . . . . . . . . . 5 . . . . . . . . . . . Level 5 . | . . . . . . . . . . . . . . . . . . . . . High Security . | . . . . . . . . . . . . . . . . . . . . . Max Security . | . . . . . . . . . . . . . . . . . . . . . Squads Dispatched 39 | . 6 5 3 . . . . 1 . 3 . 2 . . 7 . 5 . 4 3 Investigation 7 | . 2 2 1 . . . . . . . . 1 . . 1 . . . . . Extermination 7 | . . . . . . . . . . . . . . . 3 . 1 . 2 1 Reinforcement 18 | . 4 3 . . . . . 1 . 1 . . . . 2 . 3 . 2 2 Assault 6 | . . . 2 . . . . . . 1 . 1 . . 1 . 1 . . . Garrison 1 | . . . . . . . . . . 1 . . . . . . . . . . Intercept . | . . . . . . . . . . . . . . . . . . . . . Searches Triggered . | . . . . . . . . . . . . . . . . . . . . . Construction Impeded 2 | . . . . . . . . . . . . . . . . . 1 . . 1 Haulers Reinforced 3 | . . . . . . . . 1 . . . . . . 1 . 1 . . . Active Scanning Responses . | . . . . . . . . . . . . . . . . . . . . . Cargo Convoy Interrupts . | . . . . . . . . . . . . . . . . . . . . . Stealth | -11 -10 -9 -9 -9 -9 -7 -7 -6 -6 -5 -5 -5 -5 -5 -4 -4 -4 -4 -3 -3 --------- Run | Yrd Mat Mat Sto Gar Rec Fac Gar Fac Gar Fac Gar Fac Upp Upp Fac Was Fac Gar Res Tes Distress Signals 12 | . 1 4 . . . . . . . . . . . . 1 . 2 . 3 1 Communications Jammed 6 | . . . . . . . . . . . . . . . 6 . . . . . Distress Signals 6 | . . . . . . . . . . . . . . . 6 . . . . . Times Spotted 374 | . 22 41 17 16 2 6 26 3 32 16 30 12 . 4 50 4 30 14 30 19 Peak Tracking Total 13 | . 3 6 4 4 1 4 5 2 6 5 8 6 . 4 6 3 13 7 10 6 Tactical Retreats 16 | . . 1 1 . . . 4 . 2 1 . 1 . . 1 . 3 . 2 . Traps | -11 -10 -9 -9 -9 -9 -7 -7 -6 -6 -5 -5 -5 -5 -5 -4 -4 -4 -4 -3 -3 ------- Run | Yrd Mat Mat Sto Gar Rec Fac Gar Fac Gar Fac Gar Fac Upp Upp Fac Was Fac Gar Res Tes Traps Triggered 25 | . 2 2 2 1 . . 4 . 3 . 9 . . . 2 . . . . . Indirectly . | . . . . . . . . . . . . . . . . . . . . . Trap Hack Attempts . | . . . . . . . . . . . . . . . . . . . . . Triggered . | . . . . . . . . . . . . . . . . . . . . . Disarmed . | . . . . . . . . . . . . . . . . . . . . . Reprogrammed . | . . . . . . . . . . . . . . . . . . . . . Reused . | . . . . . . . . . . . . . . . . . . . . . Traps Extracted . | . . . . . . . . . . . . . . . . . . . . . Installed . | . . . . . . . . . . . . . . . . . . . . . Triggered . | . . . . . . . . . . . . . . . . . . . . . Machines | -11 -10 -9 -9 -9 -9 -7 -7 -6 -6 -5 -5 -5 -5 -5 -4 -4 -4 -4 -3 -3 ---------- Run | Yrd Mat Mat Sto Gar Rec Fac Gar Fac Gar Fac Gar Fac Upp Upp Fac Was Fac Gar Res Tes Machines Disabled 54 | . . 3 1 5 . 1 . . 2 1 2 1 . . 21 . 8 4 1 4 Max in Single Turn 5 | . . 1 1 1 . 1 . . 1 1 1 1 . . 5 . 5 1 1 1 Garrison Access 1 | . . . . . . . . . . . . . . . . . . . . 1 Garrison Relay 10 | . . . . 2 . . 1 . 3 . 2 . . . . . . 2 . . Machines Repaired . | . . . . . . . . . . . . . . . . . . . . . Machines Dismantled 3 | . . . . 1 . . 1 . 1 . . . . . . . . . . . Machines Sabotaged . | . . . . . . . . . . . . . . . . . . . . . Overloaded Fab Kills . | . . . . . . . . . . . . . . . . . . . . . Hacking | -11 -10 -9 -9 -9 -9 -7 -7 -6 -6 -5 -5 -5 -5 -5 -4 -4 -4 -4 -3 -3 --------- Run | Yrd Mat Mat Sto Gar Rec Fac Gar Fac Gar Fac Gar Fac Upp Upp Fac Was Fac Gar Res Tes Machines Accessed 36 | . 3 7 6 . 1 2 2 1 2 1 3 1 . . 1 . 2 1 . 3 Terminals 25 | . 3 4 4 . 1 1 2 . 2 . 3 1 . . 1 . . 1 . 2 Fabricators . | . . . . . . . . . . . . . . . . . . . . . Repair Stations 4 | . . 2 1 . . . . . . . . . . . . . 1 . . . Recycling Units . | . . . . . . . . . . . . . . . . . . . . . Scanalyzers 1 | . . 1 . . . . . . . . . . . . . . . . . . Garrison Access 6 | . . . 1 . . 1 . 1 . 1 . . . . . . 1 . . 1 Total Hacks 79 | . 7 24 13 . 1 4 4 1 4 1 5 3 . . 2 . 2 1 . 7 Successful 35 | . 2 15 7 . . 2 2 1 . 1 1 . . . 1 . 1 . . 2 Failed 44 | . 5 9 6 . 1 2 2 . 4 . 4 3 . . 1 . 1 1 . 5 Catastrophic 7 | . 2 . . . . . . . 2 . 1 . . . . . . . . 2 Database Lockouts . | . . . . . . . . . . . . . . . . . . . . . Manual 15 | . 4 2 2 . . 2 . . . . . 3 . . . . . . . 2 Terminals 57 | . 7 13 9 . 1 3 4 . 4 . 5 3 . . 2 . . 1 . 5 Fabricators . | . . . . . . . . . . . . . . . . . . . . . Repair Stations 9 | . . 5 3 . . . . . . . . . . . . . 1 . . . Recycling Units . | . . . . . . . . . . . . . . . . . . . . . Scanalyzers 6 | . . 6 . . . . . . . . . . . . . . . . . . Garrison Access 7 | . . . 1 . . 1 . 1 . 1 . . . . . . 1 . . 2 Terminal Hacks 18 | . 2 6 5 . . 1 2 . . . 1 . . . 1 . . . . . Robot Analysis 2 | . 1 1 . . . . . . . . . . . . . . . . . . Open Door 1 | . . . 1 . . . . . . . . . . . . . . . . . Branch Access Points 1 | . . . . . . . . . . . . . . . 1 . . . . . Emergency Access Points 1 | . . . . . . . 1 . . . . . . . . . . . . . Alert Level 5 | . 1 2 1 . . 1 . . . . . . . . . . . . . . Unreport Threat 1 | . . . 1 . . . . . . . . . . . . . . . . . Locate Traps 1 | . . . 1 . . . . . . . . . . . . . . . . . Security Status 1 | . . . 1 . . . . . . . . . . . . . . . . . Hauler Manifests 1 | . . 1 . . . . . . . . . . . . . . . . . . Zone Layout 2 | . . 2 . . . . . . . . . . . . . . . . . . Patrol Navigation 2 | . . . . . . . 1 . . . 1 . . . . . . . . . Fabricator Hacks . | . . . . . . . . . . . . . . . . . . . . . Repair Station Hacks 4 | . . 3 1 . . . . . . . . . . . . . . . . . Scan Component 3 | . . 2 1 . . . . . . . . . . . . . . . . . Repair 1 | . . 1 . . . . . . . . . . . . . . . . . . Recycling Unit Hacks . | . . . . . . . . . . . . . . . . . . . . . Scanalyzer 6 | . . 6 . . . . . . . . . . . . . . . . . . Insert Component 3 | . . 3 . . . . . . . . . . . . . . . . . . Analyze 3 | . . 3 . . . . . . . . . . . . . . . . . . Garrison Access Hacks 7 | . . . 1 . . 1 . 1 . 1 . . . . . . 1 . . 2 Unlock Access 5 | . . . 1 . . 1 . 1 . 1 . . . . . . 1 . . . Seal Access 1 | . . . . . . . . . . . . . . . . . . . . 1 Coupler Status 1 | . . . . . . . . . . . . . . . . . . . . 1 Unauthorized Hacks . | . . . . . . . . . . . . . . . . . . . . . Terminals . | . . . . . . . . . . . . . . . . . . . . . Fabricators . | . . . . . . . . . . . . . . . . . . . . . Repair Stations . | . . . . . . . . . . . . . . . . . . . . . Recycling Units . | . . . . . . . . . . . . . . . . . . . . . Scanalyzers . | . . . . . . . . . . . . . . . . . . . . . Garrison Access . | . . . . . . . . . . . . . . . . . . . . . Data Cores Recovered 1 | . . . . . . . . . . . . . . . 1 . . . . . Used . | . . . . . . . . . . . . . . . . . . . . . Hacking Detections 26 | . 3 3 3 . 1 2 2 . 2 1 3 1 . . . . 2 1 . 2 Full Trace Events 8 | . 1 1 1 . . . . . 2 . 2 1 . . . . . . . . Feedback Events . | . . . . . . . . . . . . . . . . . . . . . Feedback Blocked . | . . . . . . . . . . . . . . . . . . . . . Robot Schematics Acquired . | . . . . . . . . . . . . . . . . . . . . . Robots Built . | . . . . . . . . . . . . . . . . . . . . . Authchips . | . . . . . . . . . . . . . . . . . . . . . Time . | . . . . . . . . . . . . . . . . . . . . . Total Robot Build Rating . | . . . . . . . . . . . . . . . . . . . . . Part Schematics Acquired 3 | . . 3 . . . . . . . . . . . . . . . . . . Parts Built . | . . . . . . . . . . . . . . . . . . . . . Authchips . | . . . . . . . . . . . . . . . . . . . . . Time . | . . . . . . . . . . . . . . . . . . . . . Total Part Build Rating . | . . . . . . . . . . . . . . . . . . . . . Parts Repaired 1 | . . 1 . . . . . . . . . . . . . . . . . . Time 26 | . . 26 . . . . . . . . . . . . . . . . . . Parts Recycled . | . . . . . . . . . . . . . . . . . . . . . Recycled Matter . | . . . . . . . . . . . . . . . . . . . . . Retrieved Matter . | . . . . . . . . . . . . . . . . . . . . . Retrieved Components . | . . . . . . . . . . . . . . . . . . . . . Parts Scanalyzed 3 | . . 3 . . . . . . . . . . . . . . . . . . Part Schematics Acquired 3 | . . 3 . . . . . . . . . . . . . . . . . . Parts Damaged . | . . . . . . . . . . . . . . . . . . . . . Bothacking | -11 -10 -9 -9 -9 -9 -7 -7 -6 -6 -5 -5 -5 -5 -5 -4 -4 -4 -4 -3 -3 ------------ Run | Yrd Mat Mat Sto Gar Rec Fac Gar Fac Gar Fac Gar Fac Upp Upp Fac Was Fac Gar Res Tes Used RIF Installer 5 | . . . . 1 . . 1 . 1 . 1 . . . . . . 1 . . Coupler Efficiency 1 | . . . . . . . . . . . . . . . . . . 1 . . Threat Obfuscator 1 | . . . . . . . . . 1 . . . . . . . . . . . Watcher Feeds 1 | . . . . . . . 1 . . . . . . . . . . . . . Structural Interface 1 | . . . . . . . . . . . 1 . . . . . . . . . Robots Hacked 23 | . . . . . . . 1 . 4 1 3 . . . 1 5 2 4 2 . Non-combat . | . . . . . . . . . . . . . . . . . . . . . Combat 23 | . . . . . . . 1 . 4 1 3 . . . 1 5 2 4 2 . Robot Hacks Applied 25 | . . . . . . . 1 . 4 1 3 . . . 1 5 2 6 2 . ignore_targets 5 | . . . . . . . . . . . . . . . . 5 . . . . amplify_resonance 6 | . . . . . . . . . 1 . . . . . . . 1 3 1 . disable_weapons 1 | . . . . . . . . . 1 . . . . . . . . . . . reboot_system 1 | . . . . . . . . . . . . . . . . . 1 . . . overwrite_iff 3 | . . . . . . . . . 1 1 . . . . . . . 1 . . streamctrl_high 3 | . . . . . . . . . . . 2 . . . . . . 1 . . formatsys_high 6 | . . . . . . . 1 . 1 . 1 . . . 1 . . 1 1 . Relay Couplers Released 44 | . . . . 11 . . 5 . 10 . 9 . . . . . . 9 . . Machine Destruction 40 | . . . . 7 . . 5 . 10 . 9 . . . . . . 9 . . Programmers 4 | . . . . 4 . . . . . . . . . . . . . . . . Attached 16 | . . . . . . . 1 . 3 1 3 . . . 2 . . 4 2 . Fabnet Peak Effective % . | . . . . . . . . . . . . . . . . . . . . . Robots Rewired . | . . . . . . . . . . . . . . . . . . . . . Allies Hacked 1 | . . . . . . . . . . . . . . . . . . . 1 . Hacks Repelled . | . . . . . . . . . . . . . . . . . . . . . Allies | -11 -10 -9 -9 -9 -9 -7 -7 -6 -6 -5 -5 -5 -5 -5 -4 -4 -4 -4 -3 -3 -------- Run | Yrd Mat Mat Sto Gar Rec Fac Gar Fac Gar Fac Gar Fac Upp Upp Fac Was Fac Gar Res Tes Total Allies 15 | . . . 2 . . . 1 . 2 1 4 . . . 1 . . 3 1 . Largest Group 2 | . . . 2 2 . . 1 . 1 1 2 . . . 1 . . 1 1 . Highest-Rated Group 137 | . . . 62 62 . . 21 . 32 47 49 . . . 137 . . 47 64 . Highest-Rated Ally 137 | . . . 31 31 . . 21 . 32 47 49 . . . 137 . . 47 64 . Total Orders . | . . . . . . . . . . . . . . . . . . . . . Ally Attacks 96 | . . . . 31 . . 4 . 3 3 25 . . . 9 . . 20 1 . Total Damage 2124 | . . . . 466 . . 104 . 119 71 508 . . . 219 . . 549 88 . Kills 15 | . . . . 6 . . 1 . 1 . 2 . . . 2 . . 2 1 . Allies Corrupted . | . . . . . . . . . . . . . . . . . . . . . Allies Melted 1 | . . . . . . . . . . . . . . . . . . 1 . . Intel | -11 -10 -9 -9 -9 -9 -7 -7 -6 -6 -5 -5 -5 -5 -5 -4 -4 -4 -4 -3 -3 ------- Run | Yrd Mat Mat Sto Gar Rec Fac Gar Fac Gar Fac Gar Fac Upp Upp Fac Was Fac Gar Res Tes Robot Analysis Total 2 | . 1 1 . . . . . . . . . . . . . . . . . . Derelict Logs Recovered 2 | . . . . . . . . . . . . . 2 . . . . . . . Drone Launches . | . . . . . . . . . . . . . . . . . . . . . Drone Recoveries . | . . . . . . . . . . . . . . . . . . . . . Exploration | -11 -10 -9 -9 -9 -9 -7 -7 -6 -6 -5 -5 -5 -5 -5 -4 -4 -4 -4 -3 -3 ------------- Run | Yrd Mat Mat Sto Gar Rec Fac Gar Fac Gar Fac Gar Fac Upp Upp Fac Was Fac Gar Res Tes Turns Passed 18720 | 157 1206 1458 905 885 684 725 1245 508 2234 686 1913 524 391 730 1083 143 833 897 784 729 Spaces Moved 8214 | 75 611 710 396 366 263 277 424 197 714 186 644 177 191 326 523 88 520 331 324 871 Core 96 | 2 . . . . . . . . . . 4 . . . . . . . 75 15 Treads 3862 | 73 611 710 396 366 263 277 338 181 351 . 26 16 . . . . 102 152 . . Legs 3236 | . . . . . . . . . 363 156 478 161 191 326 516 88 418 176 249 114 Wheels 278 | . . . . . . . 86 16 . 30 136 . . . 7 . . 3 . . Hover 161 | . . . . . . . . . . . . . . . . . . . . 161 Flight 581 | . . . . . . . . . . . . . . . . . . . . 581 Fastest Speed 30 | 50 160 160 160 160 240 240 210 160 160 205 115 245 190 120 120 120 120 100 50 30 Average Speed 177 | 157 171 160 160 197 240 240 233 219 237 278 228 260 190 120 135 120 129 205 178 58 Slowest Speed 900 | 160 240 240 160 240 240 240 240 240 610 680 900 410 190 190 260 120 260 400 250 330 Overloaded Moves . | . . . . . . . . . . . . . . . . . . . . . Propulsion Burnouts . | . . . . . . . . . . . . . . . . . . . . . Robots Hopped 6 | . . . . . . . . . . . . . . . . . . . . 6 Cave-ins Triggered . | . . . . . . . . . . . . . . . . . . . . . Exploration Rate (%) 41 | 5 92 75 63 43 66 11 58 7 68 7 72 8 38 42 22 69 25 56 11 43 Regions Visited 20 Branch Regions 5 Pre-discovered Areas . | . . . . . . . . . . . . . . . . . . . . . Known Exits Taken 6 | . . . 1 . . 1 . 1 . 1 . . 1 . . . 1 . . . Unknown Exits Taken 7 | 1 1 1 . . 1 . . . . . . 1 . 1 . . . . 1 . Scrap Searched 2 | . . . . . . . . . . . . . 1 1 . . . . . . Spaces Dug 30 | . . . . . 1 1 . 4 . . 4 . . . . . 10 . 6 4 Terrain Destroyed 322 | . . 15 . . 1 1 . 6 5 24 31 1 2 1 126 . 70 6 22 11 Melee 12 | . . . . . . 1 . 2 . . . . . . . . 9 . . . Projectile 114 | . . 1 . . 1 . . 4 4 24 17 . 2 1 18 . 3 6 22 11 AOE 191 | . . 14 . . . . . . . . 11 . . . 108 . 58 . . . Terrain Rammed . | . . . . . . . . . . . . . . . . . . . . . Walls Destroyed . | . . . . . . . . . . . . . . . . . . . . . Machines Disabled . | . . . . . . . . . . . . . . . . . . . . . Actions | -11 -10 -9 -9 -9 -9 -7 -7 -6 -6 -5 -5 -5 -5 -5 -4 -4 -4 -4 -3 -3 --------- Run | Yrd Mat Mat Sto Gar Rec Fac Gar Fac Gar Fac Gar Fac Upp Upp Fac Was Fac Gar Res Tes Total 10771 | 95 703 876 560 449 289 313 535 253 1069 280 895 210 215 640 751 122 613 455 439 1009 Wait 847 | . 17 30 71 10 2 . 13 18 159 27 33 5 19 291 39 27 1 21 38 26 Move 8186 | 74 610 709 396 365 262 277 423 197 713 185 642 176 190 325 523 87 520 330 323 859 Hop 6 | . . . . . . . . . . . . . . . . . . . . 6 Pick Up 182 | 3 18 18 3 9 3 6 6 8 14 9 13 3 2 2 21 . 14 18 7 5 Fast Attach 159 | 7 2 7 10 1 1 5 6 2 8 8 16 2 . 4 24 2 6 17 8 23 Attach 116 | . 2 3 1 3 . 4 7 4 11 6 16 2 1 2 18 1 12 3 10 10 Detach 19 | . . . . . . 1 1 . 3 . 2 . . . 1 . 2 1 . 8 Swap 90 | . 6 9 6 4 3 2 9 3 10 3 8 1 1 1 7 . 6 3 4 4 Drop 163 | 1 12 17 15 6 4 6 6 8 18 7 10 4 . 2 22 . 9 2 2 12 Fire 872 | 10 36 83 58 48 13 8 50 11 102 35 108 17 2 13 96 5 31 60 46 40 Melee 55 | . . . . . . 4 7 2 16 . . . . . . . 10 . . 16 Ram 1 | . . . . . . . . . . . . . . . . . . . 1 . Kick 1 | . . . . . . . . . . . . . . . . . 1 . . . Crush 2 | . . . . . 1 . . . . . . . . . . . 1 . . . Escape Stasis 63 | . . . . . . . 4 . 12 . 47 . . . . . . . . . Rewire . | . . . . . . . . . . . . . . . . . . . . . Trap . | . . . . . . . . . . . . . . . . . . . . . Miscellaneous 9 | . . . . 3 . . 3 . 3 . . . . . . . . . . . Route ------- -11/Scrapyard -10/Materials (discovered 3 exits: *Mat x3) -9/Materials (discovered 5 exits: [*Mat x2] / [*Min] / *Sto x2) -9/Storage -9/Garrison -9/Recycling -7/Factory -7/Garrison (discovered 2 exits: *Fac x2) -6/Factory -6/Garrison (discovered 3 exits: *Fac x3) -5/Factory -5/Garrison (discovered 3 exits: *Fac x3) -5/Factory -5/Upper Caves -5/Upper Caves -4/Factory (discovered 3 exits: Upp x2 / Arm) -4/Waste -4/Factory -4/Garrison -3/Research -3/Testing (discovered 1 exit: [*Res]) History --------- Turn | Location | Event 6 | -11/Scrapyard | Discovered new exit (range 15) 158 | -11/Scrapyard | Entered Materials 317 | -10/Materials | Build established: Mutant 452 | -10/Materials | Discovered new exit (range 16) 740 | -10/Materials | Discovered new exit (range 8) 1156 | -10/Materials | Discovered new exit (range 3) 1364 | -10/Materials | Entered another Materials area 1364 | -9/Materials | Evolved 2 slots: Propulsion x1, Utility x1 1369 | -9/Materials | Discovered new exit (range 11) 1570 | -9/Materials | Discovered new exit (range 13) 2012 | -9/Materials | Discovered new exit (range 6) 2184 | -9/Materials | Repaired Lgt. Treads 2285 | -9/Materials | Discovered new exit (range 9) 2504 | -9/Materials | Discovered new exit (range 16) 2822 | -9/Materials | Entered Storage 3504 | -9/Storage | Core integrity fell below 50% 3505 | -9/Storage | Build established: Scavenger-Mutant 3665 | -9/Storage | Met a pair of Derelict thieves 3727 | -9/Storage | Identified exit to Garrison 3727 | -9/Storage | Entered Garrison 3727 | -9/Garrison | Accompanied by 2 allies 3809 | -9/Garrison | Triggered checkpoint 3822 | -9/Garrison | Triggered checkpoint 3840 | -9/Garrison | Triggered checkpoint 3849 | -9/Garrison | Build established: Mutant 3866 | -9/Garrison | Garrison Relay disabled 4064 | -9/Garrison | Discovered new exit (range 9) 4092 | -9/Garrison | Triggered checkpoint 4145 | -9/Garrison | Core integrity fell below 20% 4177 | -9/Garrison | Destroyed 7 combat bots 4461 | -9/Garrison | Installed Relay Interface Framework 4493 | -9/Garrison | Garrison Relay disabled 4612 | -9/Garrison | Entered Recycling 4632 | -9/Recycling | Found Scrap Engine 4880 | -9/Recycling | Build established: Bothacker-Mutant 5276 | -9/Recycling | Discovered new exit (range 5) 5296 | -9/Recycling | Entered Factory 5296 | -7/Factory | Evolved 4 slots: Propulsion x1, Utility x2, Weapon x1 5888 | -7/Factory | Build established: Bothacker-Tank 6021 | -7/Factory | Identified exit to Garrison 6021 | -7/Factory | Entered Garrison 6166 | -7/Garrison | Triggered checkpoint 6252 | -7/Garrison | Expanded RIF knowledge: Watcher Feeds 6386 | -7/Garrison | Triggered checkpoint 6600 | -7/Garrison | Triggered checkpoint 6665 | -7/Garrison | Garrison Relay disabled 6772 | -7/Garrison | Discovered new exit (range 9) 6955 | -7/Garrison | Build established: Bothacker-Mutant 6975 | -7/Garrison | Discovered new exit (range 10) 7030 | -7/Garrison | Triggered checkpoint 7089 | -7/Garrison | Lost 3 parts (2n1u) 7266 | -7/Garrison | Entered Factory 7266 | -6/Factory | Evolved 2 slots: Utility x1, Weapon x1 7717 | -6/Factory | Build established: Bothacker-Gunner 7774 | -6/Factory | Identified exit to Garrison 7774 | -6/Factory | Entered Garrison 7836 | -6/Garrison | Triggered checkpoint 7992 | -6/Garrison | Spotted B-75 Beast 8278 | -6/Garrison | Destroyed B-75 Beast 8288 | -6/Garrison | Triggered checkpoint 8480 | -6/Garrison | Garrison Relay disabled 8600 | -6/Garrison | Discovered new exit (range 9) 8846 | -6/Garrison | Triggered checkpoint 8925 | -6/Garrison | Build established: Bothacker-Mutant 9137 | -6/Garrison | Discovered new exit (range 11) 9204 | -6/Garrison | Triggered checkpoint 9259 | -6/Garrison | Garrison Relay disabled 9384 | -6/Garrison | Triggered checkpoint 9518 | -6/Garrison | Triggered checkpoint 9660 | -6/Garrison | Discovered new exit (range 15) 9682 | -6/Garrison | Build established: Bothacker-Gunner 9688 | -6/Garrison | Triggered checkpoint 9722 | -6/Garrison | Lost 3 parts (1p1n1w) 9782 | -6/Garrison | Expanded RIF knowledge: Threat Obfuscation 9920 | -6/Garrison | Garrison Relay disabled 10008 | -6/Garrison | Entered Factory 10008 | -5/Factory | Evolved 2 slots: Utility x2 10308 | -5/Factory | First assault squad dispatched 10472 | -5/Factory | Build established: Bothacker-Tank 10563 | -5/Factory | Garrison activated, responded to threat 10565 | -5/Factory | Lost 4 parts (1p2n1w) 10662 | -5/Factory | Identified exit to Garrison 10694 | -5/Factory | Entered Garrison 10734 | -5/Garrison | Triggered checkpoint 10813 | -5/Garrison | Garrison Relay disabled 11034 | -5/Garrison | Spotted B-75 Beast 11035 | -5/Garrison | Triggered checkpoint 11091 | -5/Garrison | Destroyed B-75 Beast 11101 | -5/Garrison | Build established: Bothacker-Gunner 11143 | -5/Garrison | Lost 11 parts (2p4n1u4w) 11297 | -5/Garrison | Core integrity fell below 50% 11349 | -5/Garrison | Lost 5 parts (2n2u1w) 11392 | -5/Garrison | Lost 3 parts (2u1w) 11623 | -5/Garrison | Discovered new exit (range 11) 11797 | -5/Garrison | Discovered new exit (range 9) 11809 | -5/Garrison | Build established: Scavenger-Gunner 11836 | -5/Garrison | Triggered checkpoint 11921 | -5/Garrison | Rescued a captive Derelict 11924 | -5/Garrison | Garrison Relay disabled 12251 | -5/Garrison | Build established: Scavenger-Tank 12333 | -5/Garrison | Expanded RIF knowledge: Structural Interface 12361 | -5/Garrison | Discovered new exit (range 3) 12607 | -5/Garrison | Entered Factory 12907 | -5/Factory | First assault squad dispatched 12968 | -5/Factory | Build established: Scavenger-Gunner 13106 | -5/Factory | Lost 3 parts (1u2w) 13117 | -5/Factory | Discovered new exit (range 6) 13130 | -5/Factory | Core integrity fell below 20% 13131 | -5/Factory | Entered Upper Caves 13474 | -5/Upper Caves | Identified exit to Upper Caves 13478 | -5/Upper Caves | Learned Factory terminal intel 13522 | -5/Upper Caves | Entered another Upper Caves area 13547 | -5/Upper Caves | Discovered new exit (range 9) 13583 | -5/Upper Caves | Lost 6 parts (1p1n1u3w) 13837 | -5/Upper Caves | Build established: Scavenger-Mutant 14252 | -5/Upper Caves | Entered Factory 14252 | -4/Factory | Evolved 2 slots: Power x1, Propulsion x1 14253 | -4/Factory | Loaded intel: 25 terminal locations 14306 | -4/Factory | Lost 3 parts (1n1u1w) 14316 | -4/Factory | Identified exit to Upper Caves 14316 | -4/Factory | Identified exit to Armory 14554 | -4/Factory | Destroyed 7 combat bots 14586 | -4/Factory | Build established: Scavenger-Gunner 14687 | -4/Factory | Lost 12 parts (1p4n2u5w) 14808 | -4/Factory | Lost 3 parts (1p1u1w) 15140 | -4/Factory | Spotted B-86 Titan 15294 | -4/Factory | First assault squad dispatched 15335 | -4/Factory | Sucked down chute 15335 | -4/Factory | Entered Waste 15350 | -4/Waste | EMP discharged 15350 | -4/Waste | System corruption reached 10% 15364 | -4/Waste | Spotted C-40 Crusher 15367 | -4/Waste | Spotted C-40 Crusher 15367 | -4/Waste | Spotted C-40 Crusher 15369 | -4/Waste | Spotted C-40 Crusher 15374 | -4/Waste | Spotted C-40 Crusher 15437 | -4/Waste | Spotted C-40 Crusher 15450 | -4/Waste | EMP discharged 15454 | -4/Waste | Discovered new exit (range 16) 15478 | -4/Waste | Entered Factory 15989 | -4/Factory | System corruption reached 30% 16026 | -4/Factory | Destroyed 11 combat bots 16056 | -4/Factory | Lost 10 parts (1p2n3u4w) 16098 | -4/Factory | Core integrity fell below 50% 16133 | -4/Factory | Lost 7 parts (1p4n1u1w) 16228 | -4/Factory | First assault squad dispatched 16311 | -4/Factory | Identified exit to Garrison 16311 | -4/Factory | Entered Garrison 16353 | -4/Garrison | Expanded RIF knowledge: Coupler Efficiency 16390 | -4/Garrison | Spotted Executioner 16391 | -4/Garrison | Spotted Executioner 16406 | -4/Garrison | Destroyed Executioner 16412 | -4/Garrison | Destroyed Executioner 16471 | -4/Garrison | Found Prototype Device 16471 | -4/Garrison | Identified Adv. Kinecellerator 16508 | -4/Garrison | Triggered checkpoint 16545 | -4/Garrison | Garrison Relay disabled 16619 | -4/Garrison | Spotted B-86 Titan 16643 | -4/Garrison | Triggered checkpoint 16659 | -4/Garrison | Triggered checkpoint 16669 | -4/Garrison | Destroyed B-86 Titan 16671 | -4/Garrison | Triggered checkpoint 16729 | -4/Garrison | Lost 14 parts (1p5n4u4w) 16808 | -4/Garrison | Triggered checkpoint 17052 | -4/Garrison | Build established: Scavenger-Skirmisher 17070 | -4/Garrison | Garrison Relay disabled 17151 | -4/Garrison | Discovered new exit (range 13) 17208 | -4/Garrison | Entered Research 17208 | -3/Research | Evolved 2 slots: Propulsion x1, Weapon x1 17555 | -3/Research | Lost 3 parts (3w) 17903 | -3/Research | System corruption reached 10% 17954 | -3/Research | Released all parts (10) 17959 | -3/Research | Core integrity fell below 50% 17982 | -3/Research | Lost 15 parts (2p4n2u7w) 17988 | -3/Research | Discovered new exit (range 6) 17992 | -3/Research | Entered Testing 18076 | -3/Testing | Found Prototype Device 18076 | -3/Testing | Identified Adv. EM Disruption Field 18373 | -3/Testing | Found Prototype Device 18373 | -3/Testing | Identified 2N-1CE's Frost Array 18411 | -3/Testing | Core integrity fell below 20% 18507 | -3/Testing | Found Prototype Leg 18507 | -3/Testing | Identified Myomer Exoskeleton 18625 | -3/Testing | Discovered new exit (range 16) 18655 | -3/Testing | Scanned by Researcher 18721 | -3/Testing | Destroyed by H-77 Assassin with Coil Gun Last Messages --------------- 18701_ Penetrated by Slug. 18701_ Flexi-carbon Leg destroyed. 18701_ Slug penetrates Wall. 18702_ Penetrated by Slug. 18704_ Slug penetrates Wall. 18707_ Penetrated by Slug. 18707_ Slug penetrates W-44 Eye. 18707_ Penetrated by Slug. 18707_ Myomer Exoskeleton destroyed. 18707_ Slug penetrates Wall. 18715_ Dropped Matter Neutralizer. 18715_ Dropped Plasma Rifle. 18716_ Dropped Field Laser. 18716_ Imp. Diametric Drive destroyed. 18716_ Dropped Gamma Rifle. 18717_ Dropped Particle Reactor. 18717_ Adv. Heat Sink destroyed. 18720_ Slug penetrates Wall. 18721_ Penetrated by Slug. 18721_ Slug penetrates H-77 Assassin. Map ----- +----------------------------------------------------+ | | | | | ?????????????????????????????????????????????????? | | ?????????????#######?????????????????????????????? | | ?????????????# #?????????????????????????????? | | ???########### ! ####??????????????????????????? | | ???# #??????????????????????????? | | ??##=##### ### ????????????????????????????? | | ??##[#???# #?? ??????????????????????????????? | | ???# #???# #####+#########???????????????????????? | | ???# #####+## #???????????????????????? | | ???# #| # #???????????????????????? | | ???# # # #???????????????????????? | | ???# # + #???????????????????????? | | ???# # # #???????????????????????? | | ???# #! ! ##+###########???????????????????????? | | ???# # = ## # " ""#???????????????????????????? | | ???# ##/###### # " #???????????????????????????? | | ???# # "##??????????????????????????? | | ???# + "#??????????????#???????????? | | ???# ####### " " "#???????????? #???????????? | | ???# #?????# """""#????????## #???????????? | | ???# ##################### +???????????? | | #### w #???????????? | | hh h +???????????? | | ####### #R h [* @ < #???????????? | | ??????# # ######][ #????????????? | | ??????# # #????#[ #????????????? | | ??????##### ! #????############ #????????????? | | ????????### ! #?????????????????? #????????????? | | ??######### #?????????????????????????????????? | | ??# =%# #?????????????????????????????????? | | ??#""" =%=" +?????????????????????????????????? | | ??#""" |! # #?????????????????????????????????? | | ??#""" # #?????????????????????????????????? | | ??# # #?????????????????????????????????? | | ??#""" =# #?????????????????????????????????? | | ??#""" # #?????????????????????????????????? | | ??#""" # #?????????????????????????????????? | | ??# + #?????????????????????????????????? | | ??#""" # #?????????????????????????????????? | | ??#""" ^+ #?????????????????????????????????? | | ??#""" # #?????????????????????????????????? | | ??? # #?????????????????????????????????? | | ???"""!$! # #?????????????????????????????????? | | ???"""$%$ # ?????????????????????????????????? | | ????""=$* ? ?????????????????????????????????? | | ????? ? ?????????????????????????????????? | | #????#/###? ???????????????????????????????????? | | #????# ?#????????????????????????????????????????? | +----------------------------------------------------+ Best States ------------- Heat Dissipation 146 Coolant Potential 100 Energy Generation 41 Energy Capacity 500 Matter Stores 300 Matter Capacity 600 Sight Range 23 Robot Scan Range 16 Terrain Scan Density 10 Jamming Range 14 Additional Mass Support 12 Armor Coverage 450 Resistance: TH 15 Resistance: EM 50 Propulsion Shielding 66 Weapon Cycling 15 Phase Shifting 10 Evasion (%) 65 Targeting Accuracy 8 Core Analysis 6 Recoil Reduction 6 Particle Charging 20 Kinecelleration 50 Offensive Hacking 24 Relay Coupler Types 4 Relay Coupler Value 143 Item Schematics ----------------- Hcp. Storage Unit | -9/Materials | Scanalyzed Plasma Cutter | -9/Materials | Scanalyzed Hacking Suite | -9/Materials | Scanalyzed Robot Schematics ------------------ None Fabricated ------------ Nothing Alien Tech Used ----------------- None Achievements -------------- None Challenges ------------ None Game ------ Seed AerolevSchematicMagmablaster Manual? 0 Play Time 02:22:10 Cumulative 166.3 hours Start 2024.04.01 @ 20:59:38 End 2024.04.01 @ 23:31:25 Sessions 1 Manual Loads 0 Difficulty Rogue Special Mode None Game No. 176 Rogue 140 Adventurer 36 Explorer 0 Win Type - Total 9 Types 2/0/7/0/0/0/0/0/0 Lore% 56 Gallery% 80 Achievement% 69 Wizard Run 0 Options --------- Layout 0 ASCII 0 Keyboard 0 Movement Mouse Keybinds 0 Fullscreen 1 Font 18/SmallcapsGlow Map View 76x50 Zoom Use 0% Tactical HUD 1 Map Filters NONE Filters NONE Steam 1 RUN: 7a169f23-2788-4b8f-8138-b8370590794c